[Event "*** Titled Tuesday Blitz"]
[Site "Chess.com"]
[Date "2021.02.16"]
[Round "7"]
[White "kleopl"]
[Black "zimmm36"]
[Result "1-0"]
[WhiteElo "2471"]
[BlackElo "2282"]
[TimeControl "180+1"]
[EndTime "11:17:58 PST"]
[Termination "kleopl won by checkmate"]

1. e4 {[%clk 0:03:00.9]} 1... c5 {[%clk 0:02:59.5]} 2. Nc3 {[%clk 0:03:00.3]}
2... Nc6 {[%clk 0:02:59.3]} 3. Bb5 {[%clk 0:03:00.4]} 3... Nd4 {[%clk
0:02:59.3]} 4. Bc4 {[%clk 0:03:00.6]} 4... g6 {[%clk 0:02:58.4]} 5. Nf3 {[%clk
0:03:00.7]} 5... Bg7 {[%clk 0:02:58.8]} 6. Nxd4 {[%clk 0:03:00.7]} 6... cxd4
{[%clk 0:02:59.7]} 7. Qf3 {[%clk 0:03:00.2]} 7... Nf6 {[%clk 0:03:00.2]} 8. Ne2
{[%clk 0:02:55.8]} 8... O-O {[%clk 0:02:58.3]} 9. d3 {[%clk 0:02:54.6]} 9... Ng4
{[%clk 0:02:52]} 10. Bb3 {[%clk 0:02:52.4]} 10... Ne5 {[%clk 0:02:42.6]} 11. Qg3
{[%clk 0:02:51.9]} 11... Nc6 {[%clk 0:02:32]} 12. O-O {[%clk 0:02:46.4]} 12...
d6 {[%clk 0:02:28]} 13. f4 {[%clk 0:02:45.8]} 13... Be6 {[%clk 0:01:25.1]} 14.
Bd2 {[%clk 0:02:31.3]} 14... Rc8 {[%clk 0:00:42.6]} 15. f5 {[%clk 0:02:24.8]}
15... Bxb3 {[%clk 0:00:41.9]} 16. axb3 {[%clk 0:02:25.7]} 16... a6 {[%clk
0:00:39.3]} 17. Nf4 {[%clk 0:02:20.5]} 17... Ne5 {[%clk 0:00:38.1]} 18. Rfc1
{[%clk 0:02:12.5]} 18... Qd7 {[%clk 0:00:37.8]} 19. Nd5 {[%clk 0:02:11.1]} 19...
Rc5 {[%clk 0:00:32.1]} 20. b4 {[%clk 0:02:05.6]} 20... Rc6 {[%clk 0:00:32.1]}
21. fxg6 {[%clk 0:01:53.4]} 21... hxg6 {[%clk 0:00:31.6]} 22. c4 {[%clk
0:01:47.6]} 22... dxc3 {[%clk 0:00:29.3]} 23. bxc3 {[%clk 0:01:47.3]} 23... Rfc8
{[%clk 0:00:28.4]} 24. Bg5 {[%clk 0:01:42]} 24... Re8 {[%clk 0:00:23]} 25. c4
{[%clk 0:01:39.3]} 25... Kf8 {[%clk 0:00:19.5]} 26. Rab1 {[%clk 0:01:37.6]}
26... Qg4 {[%clk 0:00:19.3]} 27. Qxg4 {[%clk 0:01:31.1]} 27... Nxg4 {[%clk
0:00:20.2]} 28. b5 {[%clk 0:01:30.5]} 28... Bd4+ {[%clk 0:00:19.7]} 29. Kf1
{[%clk 0:01:30]} 29... Nxh2+ {[%clk 0:00:19.5]} 30. Ke2 {[%clk 0:01:29.7]} 30...
axb5 {[%clk 0:00:19.4]} 31. Rxb5 {[%clk 0:01:29.4]} 31... Ra8 {[%clk 0:00:18.1]}
32. Rh1 {[%clk 0:01:24]} 32... Ra2+ {[%clk 0:00:17.4]} 33. Bd2 {[%clk
0:01:24.2]} 33... Ng4 {[%clk 0:00:16.7]} 34. Rxb7 {[%clk 0:01:22]} 34... Rca6
{[%clk 0:00:16.5]} 35. Rb8+ {[%clk 0:01:17]} 35... Kg7 {[%clk 0:00:16.2]} 36.
Rhh8 {[%clk 0:01:17.7]} 36... Rxd2+ {[%clk 0:00:12.1]} 37. Kxd2 {[%clk
0:01:16.8]} 37... Ra2+ {[%clk 0:00:13]} 38. Kc1 {[%clk 0:01:14.5]} 38... f5
{[%clk 0:00:13.2]} 39. Rbg8+ {[%clk 0:01:10.6]} 39... Kf7 {[%clk 0:00:13.3]} 40.
Rf8+ {[%clk 0:01:10.9]} 40... Ke6 {[%clk 0:00:13.2]} 41. Rh7 {[%clk 0:01:06.4]}
41... Bf6 {[%clk 0:00:11.9]} 42. Rxf6+ {[%clk 0:00:56.4]} 42... Nxf6 {[%clk
0:00:12.8]} 43. Rxe7# {[%clk 0:00:56.1]} 1-0

[Event "*** Titled Tuesday Blitz"]
[Site "Chess.com"]
[Date "2021.02.16"]
[Round "7"]
[White "PawnEatingZombie"]
[Black "rugbyclub"]
[Result "0-1"]
[WhiteElo "2142"]
[BlackElo "2297"]
[TimeControl "180+1"]
[EndTime "11:18:02 PST"]
[Termination "rugbyclub won by resignation"]

1. d4 {[%clk 0:03:00.9]} 1... Nf6 {[%clk 0:02:32.9]} 2. c4 {[%clk 0:03:00.6]}
2... g6 {[%clk 0:02:33.1]} 3. Nc3 {[%clk 0:03:00.7]} 3... Bg7 {[%clk 0:02:33.7]}
4. e4 {[%clk 0:03:00.8]} 4... d6 {[%clk 0:02:33.7]} 5. Be2 {[%clk 0:03:01.2]}
5... O-O {[%clk 0:02:34.2]} 6. Be3 {[%clk 0:03:01.6]} 6... c5 {[%clk 0:02:33.2]}
7. d5 {[%clk 0:03:01.2]} 7... e6 {[%clk 0:02:29.6]} 8. Nf3 {[%clk 0:02:58.3]}
8... exd5 {[%clk 0:02:29.4]} 9. cxd5 {[%clk 0:02:59.2]} 9... Re8 {[%clk
0:02:29.2]} 10. Nd2 {[%clk 0:02:57.8]} 10... Na6 {[%clk 0:02:16.5]} 11. O-O
{[%clk 0:02:56.9]} 11... Nc7 {[%clk 0:02:16.1]} 12. a4 {[%clk 0:02:49.3]} 12...
b6 {[%clk 0:02:15.7]} 13. Re1 {[%clk 0:02:20.5]} 13... a6 {[%clk 0:02:14.2]} 14.
h3 {[%clk 0:01:59.2]} 14... Rb8 {[%clk 0:02:11.8]} 15. Rb1 {[%clk 0:01:44.5]}
15... b5 {[%clk 0:02:04.1]} 16. b4 {[%clk 0:01:42.6]} 16... c4 {[%clk
0:01:52.9]} 17. Qc2 {[%clk 0:01:38.2]} 17... h6 {[%clk 0:01:30.6]} 18. Bf1
{[%clk 0:01:37.3]} 18... Nh5 {[%clk 0:01:20.4]} 19. Nf3 {[%clk 0:01:31.6]} 19...
Qf6 {[%clk 0:01:16.1]} 20. Nd4 {[%clk 0:01:13.3]} 20... Bd7 {[%clk 0:01:10.7]}
21. axb5 {[%clk 0:01:05.3]} 21... axb5 {[%clk 0:01:03.6]} 22. Ra1 {[%clk
0:01:04.2]} 22... Rb7 {[%clk 0:00:52]} 23. Ra5 {[%clk 0:01:00]} 23... Nf4 {[%clk
0:00:49.6]} 24. Kh2 {[%clk 0:00:52.9]} 24... h5 {[%clk 0:00:47.7]} 25. g3 {[%clk
0:00:49.9]} 25... Nd3 {[%clk 0:00:46.1]} 26. Bxd3 {[%clk 0:00:48.4]} 26... cxd3
{[%clk 0:00:46]} 27. Qxd3 {[%clk 0:00:48.8]} 27... h4 {[%clk 0:00:45]} 28. g4
{[%clk 0:00:44.3]} 28... Qe7 {[%clk 0:00:39.4]} 29. f4 {[%clk 0:00:35.5]} 29...
g5 {[%clk 0:00:37.4]} 30. fxg5 {[%clk 0:00:30.3]} 30... Qe5+ {[%clk 0:00:37]}
31. Kh1 {[%clk 0:00:21.1]} 31... Qg3 {[%clk 0:00:36.9]} 32. Qf1 {[%clk
0:00:20.2]} 32... Be5 {[%clk 0:00:28.2]} 33. Qg2 {[%clk 0:00:19.6]} 33... Qxe1+
{[%clk 0:00:27.3]} 34. Bg1 {[%clk 0:00:18.8]} 34... Qxc3 {[%clk 0:00:26.6]} 0-1

[Event "*** Titled Tuesday Blitz"]
[Site "Chess.com"]
[Date "2021.02.16"]
[Round "7"]
[White "lamomiablanca"]
[Black "CroissantNeuf"]
[Result "0-1"]
[WhiteElo "2302"]
[BlackElo "2477"]
[TimeControl "180+1"]
[EndTime "11:18:03 PST"]
[Termination "CroissantNeuf won on time"]

1. e4 {[%clk 0:03:00.9]} 1... c5 {[%clk 0:02:59.5]} 2. d3 {[%clk 0:03:00.2]}
2... Nc6 {[%clk 0:02:56.5]} 3. g3 {[%clk 0:02:57.7]} 3... e6 {[%clk 0:02:54.3]}
4. Bg2 {[%clk 0:02:55.5]} 4... Nf6 {[%clk 0:02:54.8]} 5. Nf3 {[%clk 0:02:51.1]}
5... Be7 {[%clk 0:02:51.4]} 6. O-O {[%clk 0:02:50.1]} 6... d6 {[%clk 0:02:50.9]}
7. Qe2 {[%clk 0:02:47.5]} 7... O-O {[%clk 0:02:46.6]} 8. c3 {[%clk 0:02:47.4]}
8... e5 {[%clk 0:02:43.4]} 9. Na3 {[%clk 0:02:43.7]} 9... Re8 {[%clk 0:02:37.6]}
10. Nc4 {[%clk 0:02:42.3]} 10... Bf8 {[%clk 0:02:35]} 11. Bg5 {[%clk 0:02:39.3]}
11... h6 {[%clk 0:02:34.2]} 12. Bxf6 {[%clk 0:02:39]} 12... Qxf6 {[%clk
0:02:34.8]} 13. Nfd2 {[%clk 0:02:36.6]} 13... Be6 {[%clk 0:02:28.6]} 14. Ne3
{[%clk 0:02:36.4]} 14... b5 {[%clk 0:02:20.1]} 15. f4 {[%clk 0:02:36]} 15...
exf4 {[%clk 0:02:18.2]} 16. gxf4 {[%clk 0:02:35.8]} 16... Qd8 {[%clk 0:02:07.1]}
17. f5 {[%clk 0:02:22.3]} 17... Bd7 {[%clk 0:02:06.2]} 18. Nd5 {[%clk
0:02:04.5]} 18... Ne7 {[%clk 0:01:43.8]} 19. Ne3 {[%clk 0:01:51.2]} 19... d5
{[%clk 0:01:38.1]} 20. e5 {[%clk 0:01:18.7]} 20... d4 {[%clk 0:01:35.7]} 21.
cxd4 {[%clk 0:01:17.6]} 21... cxd4 {[%clk 0:01:35.3]} 22. Ng4 {[%clk 0:01:11.7]}
22... Nxf5 {[%clk 0:01:27.8]} 23. Bxa8 {[%clk 0:01:05.5]} 23... Qxa8 {[%clk
0:01:28.2]} 24. Ne4 {[%clk 0:01:02.1]} 24... Ne3 {[%clk 0:01:08.8]} 25. Nxe3
{[%clk 0:00:39]} 25... dxe3 {[%clk 0:01:06.7]} 26. Qxe3 {[%clk 0:00:39]} 26...
Rxe5 {[%clk 0:01:04.2]} 27. Qg3 {[%clk 0:00:38.9]} 27... Rxe4 {[%clk 0:00:45.9]}
28. dxe4 {[%clk 0:00:35.7]} 28... Bc5+ {[%clk 0:00:45.7]} 29. Kh1 {[%clk
0:00:26.8]} 29... Qxe4+ {[%clk 0:00:44.9]} 30. Qg2 {[%clk 0:00:25.7]} 30... Bc6
{[%clk 0:00:43.9]} 31. Rg1 {[%clk 0:00:12.7]} 31... Qe6 {[%clk 0:00:38.2]} 0-1

[Event "*** Titled Tuesday Blitz"]
[Site "Chess.com"]
[Date "2021.02.16"]
[Round "7"]
[White "Harry_Rakkel"]
[Black "Shuvalov"]
[Result "1-0"]
[WhiteElo "2692"]
[BlackElo "2531"]
[TimeControl "180+1"]
[EndTime "11:18:04 PST"]
[Termination "Harry_Rakkel won on time"]

1. e4 {[%clk 0:03:00.9]} 1... e6 {[%clk 0:02:59]} 2. d3 {[%clk 0:02:58.8]} 2...
d5 {[%clk 0:02:57.9]} 3. Nd2 {[%clk 0:02:58.3]} 3... c5 {[%clk 0:02:57.9]} 4.
Ngf3 {[%clk 0:02:57.6]} 4... Nc6 {[%clk 0:02:57.6]} 5. g3 {[%clk 0:02:57]} 5...
Nf6 {[%clk 0:02:55.7]} 6. Bg2 {[%clk 0:02:56.4]} 6... Be7 {[%clk 0:02:56.1]} 7.
O-O {[%clk 0:02:55.7]} 7... O-O {[%clk 0:02:56.2]} 8. Re1 {[%clk 0:02:55.4]}
8... b5 {[%clk 0:02:54.8]} 9. e5 {[%clk 0:02:54.9]} 9... Nd7 {[%clk 0:02:54.6]}
10. Nf1 {[%clk 0:02:53.6]} 10... a5 {[%clk 0:02:54.5]} 11. h4 {[%clk 0:02:53.3]}
11... a4 {[%clk 0:02:52.7]} 12. a3 {[%clk 0:02:51.4]} 12... Ba6 {[%clk
0:02:47.4]} 13. h5 {[%clk 0:02:50.9]} 13... h6 {[%clk 0:02:46.9]} 14. N1h2
{[%clk 0:02:49.9]} 14... b4 {[%clk 0:02:43.1]} 15. Ng4 {[%clk 0:02:48.4]} 15...
bxa3 {[%clk 0:02:17]} 16. bxa3 {[%clk 0:02:49.3]} 16... Rb8 {[%clk 0:02:15.4]}
17. Nxh6+ {[%clk 0:02:37.1]} 17... gxh6 {[%clk 0:02:15.1]} 18. Bxh6 {[%clk
0:02:38]} 18... Re8 {[%clk 0:02:12.4]} 19. c4 {[%clk 0:02:36.1]} 19... Kh7
{[%clk 0:02:02.4]} 20. cxd5 {[%clk 0:02:29.1]} 20... exd5 {[%clk 0:01:57.1]} 21.
Qd2 {[%clk 0:02:20.8]} 21... Rg8 {[%clk 0:01:24.5]} 22. e6 {[%clk 0:02:11.5]}
22... fxe6 {[%clk 0:01:20]} 23. Rxe6 {[%clk 0:02:12.4]} 23... Rb6 {[%clk
0:01:03]} 24. Rae1 {[%clk 0:02:09.1]} 24... Bf6 {[%clk 0:00:56.7]} 25. Bh3
{[%clk 0:01:38.8]} 25... Nd4 {[%clk 0:00:38.5]} 26. Nxd4 {[%clk 0:01:36.1]}
26... Bxd4 {[%clk 0:00:38.3]} 27. Re7+ {[%clk 0:01:28.8]} 27... Kh8 {[%clk
0:00:35.2]} 28. Be3 {[%clk 0:01:18.5]} 28... Ne5 {[%clk 0:00:23.2]} 29. Bxd4
{[%clk 0:01:13.5]} 29... cxd4 {[%clk 0:00:23.3]} 30. R1xe5 {[%clk 0:01:09.9]}
30... Rf6 {[%clk 0:00:16.7]} 31. R5e6 {[%clk 0:01:04.3]} 31... Qf8 {[%clk
0:00:13.3]} 32. Bf5 {[%clk 0:00:58.6]} 32... Rg7 {[%clk 0:00:04.1]} 33. Re8
{[%clk 0:00:54.8]} 33... Rxf5 {[%clk 0:00:04.2]} 34. Rxf8+ {[%clk 0:00:52.5]}
34... Rxf8 {[%clk 0:00:05.1]} 35. Rxa6 {[%clk 0:00:51.4]} 35... Kg8 {[%clk
0:00:02.9]} 36. Rxa4 {[%clk 0:00:50.5]} 36... Rgf7 {[%clk 0:00:01.4]} 37. Rxd4
{[%clk 0:00:49.7]} 1-0

[Event "*** Titled Tuesday Blitz"]
[Site "Chess.com"]
[Date "2021.02.16"]
[Round "7"]
[White "Nikolakis2014"]
[Black "eduardoperalta"]
[Result "1-0"]
[WhiteElo "2652"]
[BlackElo "2427"]
[TimeControl "180+1"]
[EndTime "11:18:04 PST"]
[Termination "Nikolakis2014 won on time"]

1. Nf3 {[%clk 0:03:00.9]} 1... Nf6 {[%clk 0:02:59]} 2. c4 {[%clk 0:03:00.2]}
2... g6 {[%clk 0:02:58.3]} 3. Nc3 {[%clk 0:02:59.6]} 3... Bg7 {[%clk 0:02:58.2]}
4. g3 {[%clk 0:03:00]} 4... O-O {[%clk 0:02:57.4]} 5. Bg2 {[%clk 0:03:00.2]}
5... d6 {[%clk 0:02:57.7]} 6. d4 {[%clk 0:03:00]} 6... c5 {[%clk 0:02:57.2]} 7.
O-O {[%clk 0:02:58.5]} 7... cxd4 {[%clk 0:02:55.3]} 8. Nxd4 {[%clk 0:02:58.2]}
8... Nc6 {[%clk 0:02:55.3]} 9. Nxc6 {[%clk 0:02:57.3]} 9... bxc6 {[%clk
0:02:55.1]} 10. Bxc6 {[%clk 0:02:57.5]} 10... Rb8 {[%clk 0:02:55.1]} 11. Bg2
{[%clk 0:02:57.3]} 11... Qa5 {[%clk 0:02:53]} 12. Nb5 {[%clk 0:02:50.2]} 12...
Be6 {[%clk 0:02:46.3]} 13. b3 {[%clk 0:02:46.7]} 13... Ng4 {[%clk 0:02:42.2]}
14. Bd2 {[%clk 0:02:45.7]} 14... Qb6 {[%clk 0:02:35.3]} 15. Bc3 {[%clk
0:02:42.8]} 15... Rfc8 {[%clk 0:02:20.4]} 16. Bxg7 {[%clk 0:02:41.5]} 16... Kxg7
{[%clk 0:02:19.5]} 17. Qd4+ {[%clk 0:02:40.5]} 17... Qxd4 {[%clk 0:02:13.8]} 18.
Nxd4 {[%clk 0:02:40.1]} 18... Bd7 {[%clk 0:02:12.6]} 19. Rfc1 {[%clk 0:02:38.7]}
19... a5 {[%clk 0:02:12]} 20. h3 {[%clk 0:02:32.9]} 20... Ne5 {[%clk 0:02:04]}
21. Rab1 {[%clk 0:02:31.1]} 21... f5 {[%clk 0:01:58.8]} 22. Bd5 {[%clk
0:02:24.3]} 22... Kf6 {[%clk 0:01:57.6]} 23. Bg2 {[%clk 0:02:17.3]} 23... g5
{[%clk 0:01:55]} 24. e3 {[%clk 0:02:06.1]} 24... Nd3 {[%clk 0:01:49.2]} 25. Rd1
{[%clk 0:02:04.2]} 25... Nb4 {[%clk 0:01:49.1]} 26. Rd2 {[%clk 0:02:02.5]} 26...
h5 {[%clk 0:01:43.6]} 27. Ne2 {[%clk 0:02:01.4]} 27... Na6 {[%clk 0:01:35.2]}
28. Nc3 {[%clk 0:02:01.1]} 28... Nc7 {[%clk 0:01:30.3]} 29. c5 {[%clk
0:01:52.9]} 29... Ne8 {[%clk 0:01:20.6]} 30. Nd5+ {[%clk 0:01:52.8]} 30... Kf7
{[%clk 0:01:19]} 31. cxd6 {[%clk 0:01:49.9]} 31... Nxd6 {[%clk 0:01:17.1]} 32.
Rbd1 {[%clk 0:01:49.7]} 32... a4 {[%clk 0:00:51.9]} 33. Nxe7 {[%clk 0:01:34.6]}
33... Kxe7 {[%clk 0:00:50.7]} 34. Rxd6 {[%clk 0:01:34.7]} 34... Be6 {[%clk
0:00:50.1]} 35. bxa4 {[%clk 0:01:33.2]} 35... Rc2 {[%clk 0:00:48.7]} 36. R6d2
{[%clk 0:01:30.5]} 36... Rxa2 {[%clk 0:00:45.8]} 37. Rxa2 {[%clk 0:01:29.7]}
37... Bxa2 {[%clk 0:00:44.8]} 38. a5 {[%clk 0:01:26.2]} 38... Bc4 {[%clk
0:00:43.8]} 39. Rc1 {[%clk 0:01:25.5]} 39... Rb4 {[%clk 0:00:41.6]} 40. Ra1
{[%clk 0:01:22.4]} 40... Ba6 {[%clk 0:00:40.3]} 41. Bf1 {[%clk 0:01:22.4]} 41...
Bb7 {[%clk 0:00:27.4]} 42. a6 {[%clk 0:01:21.7]} 42... Ba8 {[%clk 0:00:24.3]}
43. a7 {[%clk 0:01:21.3]} 43... f4 {[%clk 0:00:22.4]} 44. exf4 {[%clk
0:01:18.9]} 44... gxf4 {[%clk 0:00:22.8]} 45. gxf4 {[%clk 0:01:19.1]} 45... Rb6
{[%clk 0:00:04.9]} 46. f5 {[%clk 0:01:16.1]} 46... Rb5 {[%clk 0:00:01.5]} 47.
Bg2 {[%clk 0:01:15.8]} 1-0

[Event "*** Titled Tuesday Blitz"]
[Site "Chess.com"]
[Date "2021.02.16"]
[Round "7"]
[White "Kapibara_Warri0r"]
[Black "IceBelka"]
[Result "0-1"]
[WhiteElo "2186"]
[BlackElo "2402"]
[TimeControl "180+1"]
[EndTime "11:18:07 PST"]
[Termination "IceBelka won by resignation"]

1. d4 {[%clk 0:02:54.1]} 1... d5 {[%clk 0:02:58.8]} 2. c4 {[%clk 0:02:53.6]}
2... e6 {[%clk 0:02:58.8]} 3. Nc3 {[%clk 0:02:53.7]} 3... c6 {[%clk 0:02:59.2]}
4. cxd5 {[%clk 0:02:52.2]} 4... exd5 {[%clk 0:02:58.5]} 5. Nf3 {[%clk
0:02:52.3]} 5... Bf5 {[%clk 0:02:55.3]} 6. e3 {[%clk 0:02:52.3]} 6... Nf6 {[%clk
0:02:52.6]} 7. Bd3 {[%clk 0:02:48.6]} 7... Bxd3 {[%clk 0:02:52.5]} 8. Qxd3
{[%clk 0:02:49.5]} 8... Bd6 {[%clk 0:02:51.6]} 9. O-O {[%clk 0:02:49.5]} 9...
O-O {[%clk 0:02:52.1]} 10. b3 {[%clk 0:02:45.3]} 10... Re8 {[%clk 0:02:50.7]}
11. Bb2 {[%clk 0:02:45.1]} 11... Nbd7 {[%clk 0:02:50]} 12. Rfe1 {[%clk
0:02:45.3]} 12... Ne4 {[%clk 0:02:47]} 13. Ne2 {[%clk 0:02:30]} 13... Qf6 {[%clk
0:02:35.4]} 14. Ng3 {[%clk 0:02:24.9]} 14... Re6 {[%clk 0:02:22.5]} 15. Rad1
{[%clk 0:02:09.5]} 15... Rae8 {[%clk 0:02:17.5]} 16. a3 {[%clk 0:02:04.3]} 16...
Qg6 {[%clk 0:02:00.4]} 17. b4 {[%clk 0:01:50.6]} 17... h5 {[%clk 0:01:59.3]} 18.
Nh4 {[%clk 0:01:40]} 18... Qf6 {[%clk 0:01:56.4]} 19. Nf3 {[%clk 0:01:19.7]}
19... h4 {[%clk 0:01:53]} 20. Ne2 {[%clk 0:01:17.3]} 20... h3 {[%clk 0:01:51.5]}
21. Nf4 {[%clk 0:01:12.9]} 21... Bxf4 {[%clk 0:01:47.3]} 22. exf4 {[%clk
0:01:13.8]} 22... hxg2 {[%clk 0:01:38.9]} 23. Bc1 {[%clk 0:01:08.1]} 23... Qf5
{[%clk 0:01:29.8]} 24. Ne5 {[%clk 0:01:00.4]} 24... Rh6 {[%clk 0:00:47.5]} 25.
Nxd7 {[%clk 0:00:42.7]} 25... Qxd7 {[%clk 0:00:48.4]} 26. f5 {[%clk 0:00:36.1]}
26... Qxf5 {[%clk 0:00:47.9]} 27. f3 {[%clk 0:00:31]} 27... Rh3 {[%clk
0:00:22.9]} 28. fxe4 {[%clk 0:00:20.5]} 28... dxe4 {[%clk 0:00:22.5]} 29. Re3
{[%clk 0:00:16.6]} 29... exd3 {[%clk 0:00:20.5]} 30. Rxe8+ {[%clk 0:00:16.5]}
30... Kh7 {[%clk 0:00:21.1]} 31. Kxg2 {[%clk 0:00:15.5]} 31... Qf3+ {[%clk
0:00:21]} 32. Kg1 {[%clk 0:00:15.4]} 32... Qxd1+ {[%clk 0:00:21.6]} 0-1

[Event "*** Titled Tuesday Blitz"]
[Site "Chess.com"]
[Date "2021.02.16"]
[Round "7"]
[White "TeukkaSalama"]
[Black "volunteers1998"]
[Result "0-1"]
[WhiteElo "2368"]
[BlackElo "2127"]
[TimeControl "180+1"]
[EndTime "11:18:09 PST"]
[Termination "volunteers1998 won by checkmate"]

1. d4 {[%clk 0:03:00.9]} 1... f5 {[%clk 0:02:58.3]} 2. Nf3 {[%clk 0:02:59.4]}
2... Nf6 {[%clk 0:02:57.1]} 3. Bf4 {[%clk 0:02:59.9]} 3... g6 {[%clk 0:02:53.9]}
4. h4 {[%clk 0:02:58.2]} 4... h6 {[%clk 0:02:51.2]} 5. Nc3 {[%clk 0:02:53.8]}
5... Bg7 {[%clk 0:02:48.5]} 6. Qd2 {[%clk 0:02:52.9]} 6... d6 {[%clk 0:02:43.6]}
7. O-O-O {[%clk 0:02:51.9]} 7... Nc6 {[%clk 0:02:32.1]} 8. d5 {[%clk 0:02:49.5]}
8... e5 {[%clk 0:02:28.8]} 9. dxc6 {[%clk 0:02:35.2]} 9... exf4 {[%clk
0:02:26.5]} 10. cxb7 {[%clk 0:02:25.8]} 10... Bxb7 {[%clk 0:02:23.5]} 11. Qxf4
{[%clk 0:02:25.9]} 11... O-O {[%clk 0:02:19.7]} 12. e3 {[%clk 0:02:22.1]} 12...
Qe7 {[%clk 0:02:12.2]} 13. Bc4+ {[%clk 0:02:19.8]} 13... Kh8 {[%clk 0:02:11.4]}
14. h5 {[%clk 0:01:52.9]} 14... g5 {[%clk 0:02:08.2]} 15. Nxg5 {[%clk
0:01:52.7]} 15... hxg5 {[%clk 0:02:04.4]} 16. Qxg5 {[%clk 0:01:46.1]} 16... Nd5
{[%clk 0:01:53.6]} 17. Qxe7 {[%clk 0:00:54.5]} 17... Nxe7 {[%clk 0:01:54.5]} 18.
Ne2 {[%clk 0:00:50.8]} 18... Be5 {[%clk 0:01:42.4]} 19. f4 {[%clk 0:00:41.3]}
19... Bf6 {[%clk 0:01:37.5]} 20. Rh2 {[%clk 0:00:40.7]} 20... d5 {[%clk
0:01:24.8]} 21. Bd3 {[%clk 0:00:40.3]} 21... Rg8 {[%clk 0:01:19.2]} 22. Rg1
{[%clk 0:00:40]} 22... c5 {[%clk 0:01:15.8]} 23. c4 {[%clk 0:00:38.7]} 23...
dxc4 {[%clk 0:01:08.5]} 24. Bxc4 {[%clk 0:00:38.3]} 24... Bd5 {[%clk 0:01:06.5]}
25. Bd3 {[%clk 0:00:28.8]} 25... Bxa2 {[%clk 0:01:02.3]} 26. e4 {[%clk
0:00:28.2]} 26... fxe4 {[%clk 0:00:59.3]} 27. Bxe4 {[%clk 0:00:29.1]} 27... Bd5
{[%clk 0:00:53.8]} 28. Bg6 {[%clk 0:00:23.8]} 28... Nxg6 {[%clk 0:00:50.2]} 29.
hxg6+ {[%clk 0:00:24.4]} 29... Kg7 {[%clk 0:00:48.5]} 30. f5 {[%clk 0:00:25]}
30... Rh8 {[%clk 0:00:41.8]} 31. Rxh8 {[%clk 0:00:24.9]} 31... Rxh8 {[%clk
0:00:39.8]} 32. g4 {[%clk 0:00:25.1]} 32... Rh2 {[%clk 0:00:33.7]} 33. Ng3
{[%clk 0:00:20.9]} 33... Bxb2+ {[%clk 0:00:30.9]} 34. Kb1 {[%clk 0:00:20.3]}
34... Bd4 {[%clk 0:00:30.3]} 35. Re1 {[%clk 0:00:17.7]} 35... Ba2+ {[%clk
0:00:29.5]} 36. Kc1 {[%clk 0:00:17.4]} 36... Bb2+ {[%clk 0:00:28.7]} 37. Kd1
{[%clk 0:00:16.2]} 37... Bb3# {[%clk 0:00:28.2]} 0-1

[Event "*** Titled Tuesday Blitz"]
[Site "Chess.com"]
[Date "2021.02.16"]
[Round "7"]
[White "AniJak"]
[Black "bazar-wokzal"]
[Result "0-1"]
[WhiteElo "2317"]
[BlackElo "2555"]
[TimeControl "180+1"]
[EndTime "11:18:09 PST"]
[Termination "bazar-wokzal won by resignation"]

1. e4 {[%clk 0:03:00.9]} 1... Nc6 {[%clk 0:02:58.9]} 2. d4 {[%clk 0:03:00.3]}
2... d5 {[%clk 0:02:58.7]} 3. e5 {[%clk 0:02:59]} 3... h5 {[%clk 0:02:58.3]} 4.
g3 {[%clk 0:02:53.7]} 4... Bg4 {[%clk 0:02:52.9]} 5. Be2 {[%clk 0:02:49.2]} 5...
Qd7 {[%clk 0:02:51.1]} 6. h3 {[%clk 0:02:47.7]} 6... Bf5 {[%clk 0:02:46.8]} 7.
Be3 {[%clk 0:02:28.6]} 7... O-O-O {[%clk 0:02:39.2]} 8. c3 {[%clk 0:02:27.8]}
8... f6 {[%clk 0:02:36.6]} 9. f4 {[%clk 0:02:25.2]} 9... g5 {[%clk 0:02:31.2]}
10. fxg5 {[%clk 0:02:23.8]} 10... fxe5 {[%clk 0:02:28.9]} 11. dxe5 {[%clk
0:02:19.6]} 11... Nxe5 {[%clk 0:02:26.1]} 12. Qd4 {[%clk 0:02:18.7]} 12... Bg7
{[%clk 0:02:16.2]} 13. Qxa7 {[%clk 0:02:18.3]} 13... Qc6 {[%clk 0:02:12.8]} 14.
Bd4 {[%clk 0:02:04.1]} 14... Rh7 {[%clk 0:01:56.9]} 15. Na3 {[%clk 0:02:03.8]}
15... Nd3+ {[%clk 0:01:43.8]} 16. Bxd3 {[%clk 0:02:03.6]} 16... Bxd3 {[%clk
0:01:44]} 17. O-O-O {[%clk 0:01:57.6]} 17... Be4 {[%clk 0:01:37]} 18. Rh2 {[%clk
0:01:54.9]} 18... e5 {[%clk 0:01:34.4]} 19. Be3 {[%clk 0:01:20.9]} 19... Ne7
{[%clk 0:01:31.3]} 20. Ne2 {[%clk 0:01:14.9]} 20... Nf5 {[%clk 0:01:27]} 21. Bg1
{[%clk 0:01:13.3]} 21... Bf3 {[%clk 0:01:02.4]} 22. Rf2 {[%clk 0:01:07.8]} 22...
Bxe2 {[%clk 0:00:57.6]} 23. Rxe2 {[%clk 0:01:07.9]} 23... Nxg3 {[%clk
0:00:57.1]} 24. Red2 {[%clk 0:01:07.9]} 24... d4 {[%clk 0:00:49.1]} 25. Kb1
{[%clk 0:00:59.1]} 25... Ne4 {[%clk 0:00:48.3]} 26. Rd3 {[%clk 0:00:55.8]} 26...
Nc5 {[%clk 0:00:44.8]} 27. Rf3 {[%clk 0:00:46.1]} 27... Qxf3 {[%clk 0:00:38.6]}
28. Rc1 {[%clk 0:00:38.9]} 28... Qf5+ {[%clk 0:00:29.9]} 29. Ka1 {[%clk
0:00:38.7]} 29... Qxg5 {[%clk 0:00:29.5]} 30. Rb1 {[%clk 0:00:34.4]} 30... Na6
{[%clk 0:00:23]} 31. cxd4 {[%clk 0:00:29.4]} 31... exd4 {[%clk 0:00:22.3]} 32.
Nb5 {[%clk 0:00:29.6]} 32... Qxb5 {[%clk 0:00:20.9]} 33. Rc1 {[%clk 0:00:24.6]}
33... d3 {[%clk 0:00:20.3]} 34. Rb1 {[%clk 0:00:24.9]} 34... d2 {[%clk
0:00:19.5]} 0-1